bitfinex/quotes_SOLUSD_20250903
["timestamp","ask_amount","ask_price","bid_price","bid_amount"]
[1756911633736,33.90537227,212.4,212.39,38.24]
[1756911634736,26.69,212.4,212.39,38.24]
[1756911634930,33.90537227,212.4,212.39,38.24]
[1756911635716,26.0,212.4,212.39,38.24]
[1756911635917,33.90537227,212.4,212.39,38.18]
[1756911636113,26.0,212.4,212.39,38.18]
[1756911636313,33.90537227,212.4,212.39,38.18]
[1756911637221,7.90537227,212.4,212.39,38.18]
[1756911638116,26.0,212.41,212.39,38.18]
[1756911638314,26.0,212.42,212.39,38.86]
[1756911638530,7.90537227,212.4,212.39,38.18]
[1756911639113,26.0,212.42,212.39,38.18]
[1756911639313,7.90537227,212.41,212.39,38.86]
[1756911639550,7.90537227,212.41,212.39,38.18]
[1756911639826,7.90537227,212.4,212.39,38.18]
[1756911640415,26.0,212.42,212.39,38.18]
[1756911640614,7.90537227,212.4,212.39,38.18]
[1756911641223,8.59537227,212.4,212.38,0.03]
[1756911641436,30.70781132,212.42,212.39,38.08]
[1756911641628,32.59553873,212.42,212.39,38.08]
[1756911642017,26.0,212.4,212.39,38.08]
[1756911642246,26.68,212.4,212.38,0.03]
[1756911642426,13.59559401,212.39,212.38,0.03]
[1756911642640,16.85225003,212.39,212.38,0.03]
[1756911642819,17.53225003,212.39,212.38,0.03]
[1756911643457,30.11289983,212.39,212.38,0.03]
[1756911644154,8.59865291,212.39,212.38,0.03]
[1756911644842,7.91865291,212.39,212.38,0.03]
[1756911645341,8.59865291,212.39,212.38,0.03]
[1756911646042,13.30697251,212.39,212.38,0.03]
[1756911647247,21.22562542,212.39,212.38,0.03]
[1756911648324,34.82121943,212.39,212.37,0.03]
[1756911648548,15.83730582,212.38,212.37,0.03]
[1756911648752,17.72565705,212.38,212.37,0.03]
[1756911648953,18.40565705,212.38,212.37,0.03]
[1756911649340,18.40565705,212.38,212.36,0.03]
[1756911649341,32.00125106,212.38,212.36,0.03]
[1756911649543,7.91865291,212.37,212.36,0.03]
[1756911649969,146.99559401,212.36,212.34,0.03]
[1756911650165,146.99559401,212.36,212.31,0.03]
[1756911650166,38.62830298,212.33,212.31,0.03]
[1756911650342,13.59559401,212.32,212.31,0.03]
[1756911650540,22.19424692,212.32,212.31,0.03]
[1756911651056,22.19424692,212.32,212.28,0.03]
[1756911651057,39.59559401,212.29,212.28,0.03]
[1756911651246,47.51424692,212.29,212.28,0.03]
[1756911651561,48.19424692,212.29,212.28,0.03]
[1756911651771,50.08331159,212.29,212.28,0.03]
[1756911651949,42.16465868,212.29,212.28,0.03]
[1756911652154,54.79384906,212.29,212.28,0.03]
[1756911653335,54.11384906,212.29,212.28,0.03]
[1756911653540,57.90898005,212.29,212.28,0.03]
[1756911655348,46.19519615,212.29,212.28,0.03]
[1756911655549,37.7137839,212.29,212.28,0.03]
[1756911655755,42.42432137,212.29,212.28,0.03]
[1756911655962,44.31311844,212.29,212.28,0.03]
[1756911656164,57.90871245,212.29,212.28,0.03]
[1756911657059,58.58871245,212.29,212.28,0.03]
[1756911658160,57.90871245,212.29,212.28,0.03]
[1756911658467,58.58871245,212.29,212.28,0.03]
[1756911659054,53.19817498,212.29,212.28,0.03]
[1756911659255,37.7137839,212.29,212.28,0.03]
[1756911659653,11.7137839,212.29,212.28,0.73]
[1756911661164,26.0,212.32,212.28,0.73]
[1756911661349,11.7137839,212.29,212.28,0.73]
[1756911661555,11.7137839,212.3,212.28,5.44070194]
[1756911661879,11.7137839,212.35,212.29,12.4137839]
[1756911662057,11.7137839,212.31,212.3,0.7]
[1756911662483,11.7137839,212.31,212.28,0.73]
[1756911662786,11.7137839,212.29,212.28,0.03]
[1756911663480,11.7137839,212.29,212.28,0.73]
[1756911663772,26.0,212.31,212.28,0.73]
[1756911663968,11.7137839,212.29,212.28,0.03]
[1756911664177,30.01991538,212.29,212.28,0.03]
[1756911664783,30.69991538,212.29,212.28,0.03]
[1756911665353,56.69991538,212.29,212.28,0.03]
[1756911665580,39.59559401,212.26,212.25,0.03]
[1756911665756,51.30937791,212.26,212.25,0.03]
[1756911665956,51.98937791,212.26,212.25,0.03]
[1756911666164,51.98937791,212.26,212.23,0.03]
[1756911666165,18.3072412,212.24,212.23,0.03]
[1756911666384,30.0210251,212.24,212.23,0.03]
[1756911666683,13.59559401,212.23,212.22,1e-08]
[1756911666861,25.30937791,212.23,212.22,1e-08]
[1756911667056,25.98937791,212.23,212.22,1e-08]
[1756911668361,30.7012471,212.23,212.22,1e-08]
[1756911670390,30.0212471,212.23,212.22,1e-08]
[1756911671679,30.7012471,212.23,212.22,1e-08]
[1756911672080,30.0212471,212.23,212.22,1e-08]
[1756911672757,68.7212471,212.23,212.22,1e-08]
[1756911673889,68.0212471,212.23,212.22,1e-08]
[1756911674198,30.0212471,212.23,212.22,1e-08]
[1756911674356,133.4,212.26,212.22,0.69000001]
[1756911674561,11.7137839,212.23,212.22,0.69000001]
[1756911674760,37.7137839,212.23,212.22,1e-08]
[1756911675191,11.7137839,212.23,212.22,0.69000001]
[1756911675686,37.7137839,212.23,212.22,0.69000001]
[1756911675871,11.7137839,212.23,212.22,0.69000001]
[1756911676072,42.42565309,212.23,212.22,0.69000001]
[1756911676388,133.4,212.26,212.22,0.69000001]
[1756911676567,4.71082876,212.28,212.22,0.69000001]
[1756911676568,11.7137839,212.25,212.22,0.69000001]
[1756911676767,13.59559401,212.28,212.22,5.4020823]
[1756911677088,13.59559401,212.28,212.23,0.69]
[1756911677089,11.7137839,212.28,212.23,0.69]
[1756911677783,0.06,212.31,212.26,11.7137839]
[1756911677959,0.06,212.31,212.27,0.69]
[1756911678275,11.7737839,212.31,212.27,0.69]
[1756911678478,11.7137839,212.3,212.27,0.69]
[1756911679078,0.06,212.31,212.27,0.69]
[1756911679264,11.7737839,212.31,212.27,5.4008458]
[1756911679461,11.7737839,212.31,212.28,0.69]
[1756911679982,11.7137839,212.29,212.25,0.69]
[1756911680184,11.7137839,212.26,212.25,0.69]
[1756911681064,11.7137839,212.26,212.23,0.69]
[1756911681065,26.0,212.24,212.23,0.69]
[1756911681366,26.0,212.29,212.24,0.69]
[1756911681574,11.7137839,212.27,212.25,0.69]
[1756911681775,11.7137839,212.27,212.26,0.69]
[1756911681973,26.0,212.29,212.26,0.69]
[1756911682279,11.7137839,212.27,212.26,0.69]
[1756911682692,11.7137839,212.27,212.23,4.71179044]
[1756911682878,26.0,212.29,212.26,0.69]
[1756911683192,11.7137839,212.27,212.26,0.69]
[1756911683491,37.7137839,212.29,212.23,16.42557434]
[1756911683672,11.7137839,212.3,212.25,11.7137839]
[1756911683867,0.06,212.31,212.26,12.4037839]
[1756911684292,0.06,212.31,212.27,0.69]
[1756911684585,11.7737839,212.31,212.28,0.69]
[1756911684771,11.7737839,212.31,212.29,0.69]
[1756911684978,11.7137839,212.3,212.27,0.69]
[1756911685201,11.7137839,212.28,212.24,0.69]
[1756911685372,26.0,212.3,212.24,0.69]
[1756911685373,11.7137839,212.26,212.24,0.69]
[1756911685572,11.7137839,212.27,212.25,0.69]
[1756911685773,11.7137839,212.27,212.26,0.69]
[1756911685981,11.7137839,212.28,212.26,0.69]
[1756911686291,11.7137839,212.27,212.24,0.69]
[1756911686494,11.7137839,212.25,212.24,0.69]
[1756911686801,11.7137839,212.25,212.22,0.69000001]
[1756911686970,11.7137839,212.24,212.23,0.69]
[1756911687169,11.7137839,212.24,212.22,1e-08]
[1756911687471,26.0,212.27,212.22,0.69000001]
[1756911687679,11.7137839,212.24,212.22,0.69000001]
[1756911688201,11.7137839,212.23,212.22,1e-08]
[1756911689075,25.98937791,212.23,212.22,1e-08]
[1756911690691,30.7012471,212.23,212.22,1e-08]
[1756911692597,25.98937791,212.23,212.22,1e-08]
[1756911693171,25.30937791,212.23,212.22,1e-08]
[1756911693397,30.7012471,212.23,212.22,1e-08]
[1756911693898,68.6012471,212.23,212.22,1e-08]
[1756911694197,51.30937791,212.21,212.2,4.873061]
[1756911694492,25.30937791,212.21,212.2,4.873061]
[1756911694709,25.30937791,212.21,212.19,0.03]
[1756911694710,13.59559401,212.2,212.19,0.03]
[1756911694867,63.02316181,212.18,212.17,0.03]
[1756911695072,18.30901784,212.16,212.06,0.69]
[1756911695278,41.73658564,212.16,212.06,0.69]
[1756911695495,42.41658564,212.16,212.06,0.69]
[1756911695681,42.41658564,212.16,212.08,0.69]
[1756911696085,41.73658564,212.16,212.1,0.69]
[1756911696279,30.02280174,212.16,212.1,0.69]
[1756911696480,42.41658564,212.16,212.07,0.69]
[1756911697774,80.29658564,212.16,212.1,0.69]
[1756911697998,18.30901784,212.16,212.1,0.69]
[1756911698293,30.02280174,212.16,212.11,0.69]
[1756911698876,30.02280174,212.16,212.12,0.69]
[1756911699177,11.7137839,212.16,212.12,0.69]
[1756911699376,12.3937839,212.16,212.09,0.69]
[1756911699600,24.1075678,212.16,212.09,0.69]
[1756911699774,42.41658564,212.16,212.09,0.69]
[1756911699976,26.0,212.08,212.06,0.69]
[1756911700190,11.7137839,212.07,212.06,0.69]
[1756911701204,37.86,212.14,212.06,0.69]
[1756911701411,11.7137839,212.07,212.06,0.69]
[1756911702791,11.7137839,212.07,212.06,5.40564651]
[1756911703105,11.7137839,212.09,212.06,5.40564651]
[1756911703405,13.59559401,212.2,212.07,0.7]
[1756911703605,11.7137839,212.08,212.07,0.7]
[1756911705592,11.7137839,212.08,212.06,0.03]
[1756911705593,16.42906768,212.08,212.06,0.03]
[1756911705798,25.30937791,212.07,212.06,0.03]
[1756911705995,25.99937791,212.07,212.06,0.03]
[1756911706312,25.30937791,212.07,212.06,0.03]
[1756911706495,11.7137839,212.07,212.06,0.03]
[1756911707300,16.42920805,212.07,212.06,0.03]
[1756911707493,30.71480206,212.07,212.06,0.03]
[1756911708210,25.30937791,212.07,212.06,0.03]
[1756911708807,30.71480206,212.07,212.06,0.03]
[1756911709008,30.02480206,212.07,212.06,0.03]
[1756911709418,11.7137839,212.07,212.06,0.03]
[1756911709713,13.59559401,212.08,212.06,0.73]
[1756911709921,11.7137839,212.07,212.06,0.73]
[1756911710112,11.7137839,212.07,212.06,0.03]
[1756911710494,11.7137839,212.07,212.06,0.73]
[1756911711307,11.7137839,212.08,212.06,0.73]
[1756911711613,11.7137839,212.09,212.07,0.7]
[1756911711815,13.59559401,212.14,212.07,0.7]
[1756911712027,11.7137839,212.11,212.07,0.7]
[1756911712317,11.7137839,212.1,212.07,0.7]
[1756911712542,37.7137839,212.08,212.06,0.03]
[1756911712824,11.7137839,212.07,212.06,0.03]
[1756911713011,51.30937791,212.07,212.06,0.03]
[1756911713319,37.7137839,212.07,212.06,0.03]
[1756911713717,145.1137839,212.1,212.06,0.73]
[1756911714015,11.7137839,212.08,212.06,0.73]
[1756911714213,11.7137839,212.07,212.06,0.73]
[1756911715609,7.93760109,212.09,212.06,0.73]
[1756911715813,141.33760109,212.1,212.06,5.44564651]
[1756911716019,141.33760109,212.1,212.06,4.74564651]
[1756911716320,141.33760109,212.1,212.07,0.7]
[1756911716517,141.33760109,212.1,212.08,0.7]
[1756911716714,141.33760109,212.1,212.09,0.7]
[1756911717019,14.28559401,212.15,212.09,0.7]
[1756911717020,7.93760109,212.11,212.09,0.7]
[1756911717212,13.59559401,212.14,212.09,0.7]
[1756911717417,7.93760109,212.1,212.07,0.7]
[1756911717723,7.93760109,212.1,212.07,5.41540968]
[1756911718020,7.93760109,212.1,212.08,0.7]
[1756911719232,7.93760109,212.1,212.06,4.7456444]
[1756911719233,7.93760109,212.1,212.09,0.7]
[1756911719615,7.93760109,212.1,212.06,4.7456444]
[1756911719816,7.93760109,212.1,212.07,0.7]
[1756911720055,7.93760109,212.1,212.08,0.7]
[1756911720328,26.0,212.13,212.09,0.7]
[1756911720507,13.59559401,212.15,212.1,0.7]
[1756911720705,33.93760109,212.13,212.11,0.7]
[1756911720922,7.93760109,212.12,212.08,0.7]
[1756911721118,7.93760109,212.09,212.06,0.73]
[1756911721320,7.93760109,212.08,212.06,0.73]
[1756911721511,26.0,212.13,212.06,0.03]
[1756911721512,7.93760109,212.07,212.06,0.03]
[1756911722043,22.2231951,212.07,212.06,0.03]
[1756911722904,33.93760109,212.07,212.06,0.03]
[1756911723713,26.0,212.07,212.06,0.03]
[1756911723923,33.93760109,212.07,212.06,0.03]
[1756911724323,7.93760109,212.11,212.06,0.73]
[1756911724531,7.93760109,212.12,212.06,8.66760109]
[1756911724849,7.93760109,212.1,212.06,0.03]
[1756911725017,7.93760109,212.09,212.06,0.03]
[1756911725338,33.93760109,212.07,212.06,0.03]
[1756911725526,34.62760109,212.07,212.06,0.03]
[1756911726016,26.93861925,212.07,212.06,0.03]
[1756911726214,52.93861925,212.07,212.06,0.03]
[1756911726521,33.93760109,212.07,212.06,0.03]
[1756911727429,4.71472407,212.11,212.06,0.03]
[1756911727641,13.59559401,212.12,212.06,0.73]
[1756911727948,19.00008474,212.12,212.06,0.73]
[1756911728122,7.93760109,212.09,212.06,0.73]
[1756911728322,7.93760109,212.08,212.06,0.03]
[1756911728929,7.93760109,212.07,212.06,0.03]
[1756911729116,33.93760109,212.07,212.06,0.03]
[1756911729329,48.2231951,212.07,212.06,0.03]
[1756911729545,17.55253232,212.07,212.06,0.03]
[1756911730140,22.26795647,212.07,212.06,0.03]
[1756911730747,17.55253232,212.07,212.06,0.03]
[1756911731146,13.59559401,212.07,212.06,0.03]
[1756911731445,21.57795647,212.07,212.06,0.03]
[1756911731651,4.71475719,212.1,212.06,0.03]
[1756911731816,3.26693831,212.07,212.06,0.03]
[1756911732641,21.57761332,212.09,212.06,0.03]
[1756911732838,7.98171609,212.1,212.06,0.69]
[1756911733045,3.26693831,212.1,212.06,0.69]
[1756911733217,21.57688134,212.12,212.06,3.29693831]
[1756911733421,3.26693831,212.1,212.06,0.03]
[1756911733644,26.0,212.09,212.06,0.03]
[1756911734034,18.30994303,212.12,212.07,0.66]
[1756911734341,26.0,212.09,212.07,0.66]
[1756911734543,26.0,212.09,212.06,0.03]
[1756911734931,26.0,212.09,212.06,0.69]
[1756911735331,26.0,212.09,212.07,0.66]
[1756911735529,26.0,212.09,212.06,0.03]
[1756911735731,26.0,212.09,212.07,0.66]
[1756911736121,26.0,212.09,212.06,4.7455481]
[1756911736319,3.26693831,212.14,212.08,3.26693831]
[1756911736542,3.32693831,212.15,212.09,0.66]
[1756911736749,3.32693831,212.15,212.09,3.92693831]
[1756911736963,0.06,212.15,212.1,3.92693831]
[1756911737127,0.06,212.15,212.11,3.92693831]
[1756911737524,0.06,212.15,212.12,0.66]
[1756911737725,26.06,212.15,212.1,3.26693831]
[1756911738051,26.06,212.15,212.11,0.66]
[1756911738462,3.26693831,212.14,212.07,0.66]
[1756911738639,29.26693831,212.13,212.07,3.92693831]
[1756911738833,26.0,212.13,212.08,3.26693831]
[1756911739248,3.26693831,212.14,212.09,0.66]
[1756911739447,26.0,212.13,212.09,0.66]
[1756911739651,3.93693831,212.12,212.06,0.03]
[1756911739963,3.26693831,212.1,212.06,0.03]
[1756911740330,26.0,212.08,212.06,0.03]
[1756911740553,3.26693831,212.09,212.06,0.03]
[1756911741233,4.62190877,212.16,212.07,0.66]
[1756911741432,26.0,212.12,212.07,3.92693831]
[1756911741641,26.0,212.12,212.08,0.66]
[1756911741932,3.26693831,212.11,212.06,0.03]
[1756911742241,31.38432411,212.12,212.06,0.03]
[1756911742443,29.26693831,212.12,212.07,0.66]
[1756911742756,29.93693831,212.12,212.07,0.66]
[1756911742968,26.0,212.11,212.06,8.01255228]
[1756911743254,4.71388435,212.14,212.08,3.92693831]
[1756911743255,3.26693831,212.14,212.08,3.92693831]
[1756911743464,3.26693831,212.14,212.06,8.01255228]
[1756911743465,29.26693831,212.12,212.06,8.01255228]
[1756911743630,29.26693831,212.12,212.06,3.29693831]
[1756911743833,26.0,212.12,212.08,3.26693831]
[1756911744027,0.06,212.15,212.1,3.26693831]
[1756911744261,0.06,212.15,212.11,3.92693831]
[1756911744561,0.06,212.15,212.12,3.26693831]
[1756911744747,0.06,212.15,212.12,0.66]
[1756911744948,0.06,212.15,212.1,3.92693831]
[1756911745158,0.06,212.15,212.11,0.66]
[1756911745463,3.32693831,212.15,212.11,0.66]
[1756911745755,26.06,212.15,212.12,0.66]
[1756911745927,26.06,212.15,212.13,0.66]
[1756911746262,0.06,212.15,212.14,0.66]
[1756911746552,0.06,212.15,212.14,3.92693831]
[1756911747262,0.06,212.15,212.14,0.66]
[1756911747573,0.06,212.15,212.14,3.92693831]
[1756911748130,0.06,212.15,212.14,8.64080651]
[1756911750859,0.06,212.15,212.12,37.8]
[1756911750860,0.06,212.15,212.12,3.26693831]
[1756911751064,0.06,212.15,212.12,0.66]
[1756911751241,0.06,212.15,212.11,3.26693831]
[1756911751436,0.06,212.15,212.11,38.44]
[1756911751647,0.06,212.15,212.12,3.92693831]
[1756911751963,0.06,212.15,212.14,3.26693831]
[1756911752270,0.06,212.15,212.12,3.26693831]
[1756911752459,0.06,212.15,212.12,41.04693831]
[1756911752760,0.06,212.15,212.12,38.44]
[1756911753370,0.06,212.15,212.13,3.92693831]
[1756911753554,0.06,212.15,212.14,3.26693831]
[1756911753764,0.06,212.15,212.14,3.92693831]
[1756911754158,0.06,212.15,212.14,37.78]
[1756911754465,0.06,212.15,212.14,38.44]
[1756911754675,0.06,212.15,212.12,0.66]
[1756911754977,0.06,212.15,212.13,38.44]
[1756911755146,0.06,212.15,212.07,26.03]
[1756911755147,0.06,212.15,212.11,3.26693831]
[1756911755344,3.32693831,212.15,212.09,3.92693831]
[1756911755559,3.26693831,212.13,212.1,37.78]
[1756911756078,3.93693831,212.13,212.1,37.78]
[1756911756782,3.32693831,212.15,212.11,0.66]
[1756911757153,3.32693831,212.15,212.1,42.49468913]
[1756911757454,0.06,212.15,212.14,3.26693831]
[1756911757769,0.06,212.15,212.14,3.92693831]
[1756911758080,0.06,212.15,212.14,0.66]
[1756911758280,0.06,212.15,212.14,3.92693831]
[1756911761887,0.06,212.15,212.14,37.81]
[1756911762553,0.06,212.15,212.14,0.03]
[1756911765767,0.06,212.15,212.14,8.66854664]
[1756911766362,0.06,212.15,212.14,0.03]
[1756911766949,0.06,212.15,212.14,8.66854664]
[1756911768749,0.06,212.15,212.14,0.03]
[1756911769191,0.06,212.15,212.14,37.79]
[1756911769855,0.06,212.15,212.14,46.42854664]
[1756911770285,0.06,212.15,212.14,37.79]
[1756911770484,0.06,212.15,212.14,46.42854664]
[1756911771182,0.06,212.15,212.14,51.14241484]
[1756911772763,0.06,212.15,212.14,13.38241484]
[1756911772965,0.06,212.15,212.14,51.14241484]
[1756911773385,0.06,212.15,212.14,13.38241484]
[1756911773587,0.06,212.15,212.14,51.14241484]
[1756911774788,0.06,212.15,212.14,13.38241484]
[1756911774964,0.06,212.15,212.14,51.14241484]
[1756911775495,0.06,212.15,212.14,13.38241484]
[1756911775870,0.06,212.15,212.14,51.14241484]
[1756911776086,0.06,212.15,212.14,13.38241484]
[1756911776404,0.06,212.15,212.14,51.14241484]
[1756911776603,0.06,212.15,212.14,7.95854664]
[1756911776816,0.06,212.15,212.14,45.71854664]
[1756911776984,0.06,212.15,212.14,7.95854664]
[1756911777312,0.06,212.15,212.14,0.03]
[1756911777491,0.06,212.15,212.14,49.48924735]
[1756911777690,0.06,212.15,212.14,0.03]
[1756911778016,0.06,212.15,212.14,49.48924735]
[1756911778380,0.06,212.15,212.14,37.77]
[1756911778809,0.06,212.15,212.14,0.03]
[1756911779012,0.06,212.15,212.14,37.77]
[1756911779208,0.06,212.15,212.14,0.03]
[1756911779382,0.76,212.15,212.14,0.03]
[1756911779583,0.76,212.15,212.14,37.77]
[1756911779887,0.06,212.15,212.14,0.03]
[1756911780119,30.78848736,212.15,212.14,0.03]
[1756911780295,19.06924001,212.15,212.14,0.03]
[1756911780681,30.78848736,212.15,212.14,0.03]
[1756911781213,19.06924001,212.15,212.14,0.03]
[1756911781412,40.35559401,212.15,212.14,0.03]
[1756911781714,52.07484136,212.15,212.14,0.03]
[1756911781885,56.78848736,212.15,212.14,0.03]
[1756911782582,0.06,212.15,212.14,0.03]
[1756911782787,26.76,212.15,212.14,0.03]
[1756911783387,0.76,212.15,212.14,0.03]
[1756911783690,5.473646,212.15,212.14,0.03]
[1756911784211,0.06,212.15,212.14,0.03]
[1756911785304,12.47924735,212.15,212.14,0.03]
[1756911786102,17.19289335,212.15,212.14,0.03]
[1756911786482,30.78848736,212.15,212.14,0.03]
[1756911787408,0.06,212.15,212.14,0.03]
[1756911788607,0.06,212.15,212.14,0.74]
[1756911789482,0.06,212.15,212.14,12.45924735]
[1756911790287,0.06,212.15,212.14,17.17311555]
[1756911791496,0.06,212.15,212.14,5.4538682]
[1756911791695,0.06,212.15,212.14,17.17311555]
[1756911792608,0.06,212.15,212.14,54.91311555]
[1756911794216,1e-08,212.15,212.14,68.50870956]
[1756911794408,1e-08,212.15,212.14,68.7930327]
[1756911794815,1e-08,212.15,212.14,57.07378535]
[1756911795018,1e-08,212.15,212.14,68.7930327]
[1756911797301,1e-08,212.15,212.14,80.51228005]
[1756911797804,1e-08,212.18,212.17,39.59559401]
[1756911798010,1e-08,212.2,212.19,0.28432314]
[1756911798207,0.06,212.23,212.22,13.59559401]
[1756911798208,1e-08,212.23,212.22,13.59559401]
[1756911798517,1e-08,212.23,212.22,68.98238352]
[1756911799214,1e-08,212.23,212.22,70.87046735]
[1756911799402,1e-08,212.23,212.22,59.15122]
[1756911799608,1e-08,212.23,212.22,70.87046735]
[1756911801490,1e-08,212.23,212.22,75.52121378]
[1756911801694,1e-08,212.23,212.22,75.80553692]
[1756911802095,0.06,212.26,212.25,39.59559401]
[1756911802096,1e-08,212.26,212.25,39.59559401]
[1756911802296,1e-08,212.26,212.25,89.60021238]
[1756911802497,1e-08,212.26,212.25,90.27021238]
[1756911803197,1e-08,212.26,212.25,92.15802888]
[1756911803393,1e-08,212.26,212.25,80.43878153]
[1756911803629,1e-08,212.26,212.25,85.52676892]
[1756911803802,1e-08,212.26,212.25,52.51819412]
[1756911804014,1e-08,212.26,212.25,90.23819412]
[1756911804697,1e-08,212.26,212.25,75.38722909]
[1756911804898,1e-08,212.26,212.25,49.38722909]
[1756911805233,1e-08,212.26,212.25,73.49941259]
[1756911806012,1e-08,212.26,212.25,88.33037762]
[1756911807100,1e-08,212.27,212.26,13.59559401]
[1756911807298,1e-08,212.27,212.26,19.3535814]
[1756911808531,1e-08,212.27,212.26,24.06478464]
[1756911808703,1e-08,212.28,212.26,29.15277203]
[1756911808898,1e-08,212.28,212.27,62.70688654]
[1756911809128,1e-08,212.28,212.27,57.61889915]
[1756911809435,1e-08,212.28,212.27,42.78798739]
[1756911809934,0.66000001,212.28,212.27,42.78798739]
[1756911810108,0.66000001,212.28,212.26,6.59893066]
[1756911810109,0.66000001,212.28,212.26,4.71120324]
[1756911810309,1e-08,212.28,212.27,37.7]
[1756911810826,0.66000001,212.28,212.27,37.7]
[1756911811338,0.66000001,212.28,212.25,4.71138953]
[1756911811629,0.66,212.27,212.26,37.7]
[1756911811827,1e-08,212.28,212.26,42.78798739]
[1756911811998,1e-08,212.28,212.27,5.08798739]
[1756911812399,1e-08,212.28,212.27,5.75798739]
[1756911812599,1e-08,212.28,212.27,6.97589299]
[1756911812825,1e-08,212.28,212.27,9.79896868]
[1756911813010,1e-08,212.28,212.27,31.60559524]
[1756911813622,1e-08,212.3,212.29,13.59559401]
[1756911813830,0.06,212.32,212.3,39.59559401]
[1756911814038,1e-08,212.32,212.31,56.3635814]
[1756911814216,1e-08,212.32,212.31,57.0335814]
[1756911815239,1e-08,212.32,212.31,61.74367513]
[1756911815821,1e-08,212.32,212.31,61.07367513]
[1756911816032,1e-08,212.32,212.31,47.47808112]
[1756911817715,1e-08,212.32,212.31,50.0355413]
[1756911817917,1e-08,212.32,212.31,63.63113531]
[1756911819743,1e-08,212.32,212.31,62.96113531]
[1756911820245,1e-08,212.32,212.31,63.63113531]
[1756911822341,1e-08,212.32,212.31,6.59755391]
[1756911822647,1e-08,212.32,212.31,47.45808112]
[1756911823232,1e-08,212.32,212.31,61.75367513]
[1756911823631,1e-08,212.32,212.31,63.64113531]
[1756911824531,1e-08,212.33,212.32,18.6835814]
[1756911824727,1e-08,212.33,212.31,32.59755391]
[1756911824934,0.68000001,212.33,212.32,42.74798739]
[1756911825239,0.68,212.32,212.31,9.79808112]
[1756911825548,0.68,212.32,212.31,37.66]
[1756911825743,5.76798739,212.32,212.31,37.66]
[1756911826136,5.76798739,212.32,212.25,10.85597478]
[1756911826337,5.08798739,212.3,212.26,37.66]
[1756911826645,0.68,212.29,212.26,42.74798739]
[1756911826848,5.0879874,212.33,212.27,5.08798739]
[1756911827041,0.68,212.32,212.28,42.74798739]
[1756911827226,0.68,212.31,212.28,42.74798739]
[1756911827428,0.68,212.3,212.28,42.74798739]
[1756911827635,0.68,212.3,212.29,4.71053747]
[1756911828550,5.76798739,212.3,212.27,4.71077897]
[1756911828731,5.76798739,212.29,212.28,37.66]
[1756911829047,5.76798739,212.29,212.24,4.71164719]
[1756911829246,5.76798739,212.28,212.25,37.66]
[1756911829445,0.68,212.27,212.25,37.66]
[1756911829660,0.68,212.26,212.25,37.66]
[1756911829823,0.68,212.26,212.24,4.71164719]
[1756911830030,5.08798739,212.28,212.25,37.66]
[1756911830426,5.08798739,212.27,212.25,37.66]
[1756911830642,0.68,212.26,212.23,0.03]
[1756911830828,5.76798739,212.26,212.24,37.66]
[1756911831035,0.68,212.25,212.23,4.74186366]
[1756911831233,5.08798739,212.26,212.24,37.66]
[1756911831749,0.68,212.25,212.24,37.66]
[1756911832056,5.08798739,212.27,212.24,42.37164719]
[1756911832234,0.68,212.26,212.24,37.66]
[1756911832436,0.68,212.26,212.24,42.37158166]
[1756911833756,0.68,212.25,212.24,37.66]
[1756911834052,30.71012762,212.31,212.24,37.66]